bitfinex/quotes_ETHUSD_20240721
["timestamp","ask_amount","ask_price","bid_price","bid_amount"]
[1721582300792,0.89812672,3518.5,3517.7,2.4015]
[1721582300793,2.8424,3518.2,3517.7,2.4015]
[1721582300983,2.8422,3518.4,3517.7,2.4015]
[1721582301187,2.84229,3518.3,3517.7,2.4015]
[1721582301520,3.13922724,3518.6,3517.7,2.4015]
[1721582301521,2.84238,3518.2,3517.7,2.4015]
[1721582302100,2.84238,3518.2,3517.8,0.55]
[1721582303123,2.84244,3518.1,3517.8,0.55]
[1721582303429,2.8426,3517.9,3517.8,0.55]
[1721582304099,5.6852,3517.9,3517.8,0.55]
[1721582304428,2.84308,3517.3,3517.2,7.3]
[1721582304731,5.68616,3517.3,3517.2,7.3]
[1721582304913,6.254776,3517.3,3517.2,7.3]
[1721582305787,3.411696,3517.3,3517.2,7.3]
[1721582306292,6.254776,3517.3,3517.2,7.3]
[1721582307030,3.411696,3517.3,3517.2,7.3]
[1721582307239,2.84308,3517.3,3517.2,7.85]
[1721582309501,5.68616,3517.3,3517.2,7.3]
[1721582309804,3.0,3517.9,3516.4,19.73]
[1721582309805,3.0,3517.9,3516.4,7.3]
[1721582310126,2.84373,3516.5,3516.4,7.3]
[1721582310395,5.992,3517.8,3516.0,2.4015]
[1721582310396,2.84363,3516.7,3516.0,2.4015]
[1721582310899,2.84363,3516.7,3516.0,5.24563]
[1721582311056,2.84375,3516.5,3516.0,2.4015]
[1721582312088,2.84375,3516.5,3516.1,0.55]
[1721582312913,0.29404429,3516.7,3516.1,0.55]
[1721582313263,0.60779772,3516.7,3516.1,0.55]
[1721582314303,2.84379,3516.5,3516.1,0.55]
[1721582314476,0.60779772,3516.7,3516.1,0.55]
[1721582314477,3.13764429,3516.7,3516.1,0.55]
[1721582314662,2.84366,3516.6,3516.1,0.55]
[1721582314992,0.29404429,3516.7,3516.1,0.55]
[1721582315195,0.29404429,3516.7,3516.3,2.84388]
[1721582315395,0.29404429,3516.7,3516.4,0.55]
[1721582315573,2.84349,3516.8,3516.4,0.55]
[1721582315776,2.84349,3516.8,3516.0,5.24563]
[1721582315777,2.84359,3516.7,3516.1,0.55]
[1721582316180,2.84367,3516.6,3516.1,0.55]
[1721582316375,1.16254839,3516.8,3516.1,0.55]
[1721582316376,2.84374,3516.5,3516.1,0.55]
[1721582316794,1.16254839,3516.8,3516.1,0.55]
[1721582317003,1.16254839,3516.8,3515.8,7.3]
[1721582317004,2.84406,3516.1,3515.8,7.3]
[1721582317400,2.8439,3516.3,3515.8,7.3]
[1721582317966,2.84398,3516.2,3515.8,7.3]
[1721582318164,2.84398,3516.2,3515.9,0.55]
[1721582318366,2.84381,3516.4,3515.5,24.96884]
[1721582318367,2.84386,3516.4,3515.5,2.3943]
[1721582318566,2.84431,3515.8,3515.5,2.3943]
[1721582318801,2.84418,3516.0,3515.5,2.3943]
[1721582318965,2.84422,3515.9,3515.5,2.3943]
[1721582319171,2.84415,3516.0,3515.5,2.3943]
[1721582319561,2.84423,3515.9,3515.5,2.3943]
[1721582319801,3.128733,3515.8,3515.4,7.3]
[1721582319966,2.84452,3515.6,3515.4,7.3]
[1721582320166,3.128733,3515.8,3515.1,2.3943]
[1721582320167,2.84458,3515.5,3515.1,2.3943]
[1721582320366,2.84441,3515.7,3515.1,2.3943]
[1721582320562,0.284423,3515.8,3515.1,2.3943]
[1721582320563,2.84446,3515.6,3515.1,2.3943]
[1721582320800,2.84457,3515.5,3515.1,2.3943]
[1721582321029,2.84438,3515.7,3515.1,2.3943]
[1721582321322,2.84438,3515.7,3515.1,5.23916]
[1721582321323,0.3128803,3515.7,3515.1,5.23916]
[1721582321473,0.3128803,3515.7,3515.2,0.55]
[1721582323112,2.84446,3515.6,3515.2,0.55]
[1721582323315,2.84446,3515.6,3514.8,7.3]
[1721582323316,2.84455,3515.5,3514.8,7.3]
[1721582323611,2.84458,3515.5,3514.8,7.3]
[1721582323824,2.84458,3515.5,3514.8,10.14511]
[1721582324124,2.84438,3515.7,3514.8,7.3]
[1721582324280,0.35,3516.2,3515.2,2.84474]
[1721582324480,2.8443,3515.8,3515.2,2.84474]
[1721582324785,1.0900152,3516.1,3514.0,2.8457]
[1721582324786,2.348,3516.1,3514.0,2.8457]
[1721582324981,2.84502,3515.0,3514.1,2.84561]
[1721582325180,2.84423,3515.9,3514.0,2.84575]
[1721582325181,2.84524,3514.7,3514.0,2.84575]
[1721582325399,0.35,3515.6,3514.0,2.84575]
[1721582325400,2.84468,3515.4,3514.0,2.84575]
[1721582325570,1.64349487,3515.3,3514.1,2.84563]
[1721582325773,3.14251937,3514.6,3513.9,5.24012]
[1721582326010,2.84516,3514.8,3514.0,2.84575]
[1721582326171,0.29720611,3514.5,3513.9,2.3943]
[1721582326374,3.14256611,3514.5,3513.9,2.3943]
[1721582326682,0.64081837,3514.5,3514.0,2.84575]
[1721582326899,0.29720611,3514.5,3513.9,2.3943]
[1721582327599,0.29720611,3514.5,3513.9,5.24009]
[1721582328004,0.29720611,3514.5,3513.9,2.3943]
[1721582328190,0.29720611,3514.5,3512.8,7.3]
[1721582328191,2.84584,3513.9,3512.8,7.3]
[1721582328388,2.84584,3513.9,3512.7,2.3943]
[1721582328389,2.8461,3513.6,3512.7,2.3943]
[1721582328616,2.8461,3513.6,3512.9,2.84663]
[1721582328997,2.84592,3513.8,3513.0,2.84655]
[1721582329239,2.84576,3514.0,3513.0,2.84655]
[1721582329240,3.26590853,3513.7,3513.0,2.84655]
[1721582329459,3.0,3514.4,3512.9,2.3943]
[1721582329769,0.29720611,3514.5,3514.0,2.8457]
[1721582329914,0.29720611,3514.5,3513.5,2.3943]
[1721582329915,0.29720611,3514.5,3513.6,0.05690715]
[1721582330114,0.29720611,3514.5,3514.4,2.84543]
[1721582330504,0.29720611,3514.5,3514.3,2.84545]
[1721582330841,0.29720611,3514.5,3514.4,0.55]
[1721582331647,0.29720611,3514.5,3514.1,0.55]
[1721582332410,0.29720611,3514.5,3514.1,3.39567]
[1721582332612,0.29720611,3514.5,3514.4,2.84543]
[1721582332912,0.29720611,3514.5,3514.4,8.08516]
[1721582333135,2.84366,3516.6,3514.7,2.84516]
[1721582333136,2.84411,3516.1,3514.7,2.84516]
[1721582333409,0.29727138,3515.0,3514.8,0.55]
[1721582333620,2.84469,3515.4,3514.8,0.55]
[1721582333812,0.29728078,3515.0,3514.8,0.55]
[1721582334013,0.29728078,3515.0,3514.5,0.55]
[1721582334444,2.84509,3514.9,3514.5,0.55]
[1721582334644,2.84512,3514.8,3514.5,0.55]
[1721582335008,2.84512,3514.8,3514.3,12.47]
[1721582335009,2.84519,3514.7,3514.4,0.55]
[1721582335338,2.84517,3514.8,3514.4,0.55]
[1721582335541,2.84521,3514.7,3514.4,0.55]
[1721582336255,0.59874408,3514.7,3514.3,12.47]
[1721582336459,2.84526,3514.7,3514.3,12.47]
[1721582336826,2.84512,3514.8,3514.3,12.47]
[1721582337665,2.84512,3514.8,3514.4,0.55]
[1721582338030,2.84521,3514.7,3514.4,0.55]
[1721582338859,2.8452,3514.7,3514.4,0.55]
[1721582339018,0.28452,3514.6,3514.4,0.55]
[1721582339215,5.6907,3514.5,3514.4,0.55]
[1721582339452,2.84557,3514.3,3513.7,7.3]
[1721582339660,2.84561,3514.2,3513.8,0.55]
[1721582339821,2.84561,3514.2,3513.6,3.39607]
[1721582340023,0.28452,3514.6,3513.7,2.84599]
[1721582340024,2.84547,3514.4,3513.7,2.84599]
[1721582340231,2.84547,3514.4,3513.8,0.55]
[1721582341430,0.597527,3514.4,3513.8,3.3959]
[1721582341630,3.1298,3514.6,3513.9,2.84577]
[1721582341861,3.1298,3514.6,3514.0,0.55]
[1721582342171,2.84505,3514.9,3514.0,0.55]
[1721582342324,2.84505,3514.9,3514.2,2.84557]
[1721582342660,3.0,3514.8,3514.3,0.55]
[1721582343164,3.0,3514.8,3514.3,3.39551]
[1721582343320,0.29728078,3515.0,3514.4,2.3472]
[1721582343521,0.29728078,3515.0,3514.7,2.84516]
[1721582343759,0.29728078,3515.0,3514.5,0.55]
[1721582343760,3.14228078,3515.0,3514.5,0.55]
[1721582344577,2.84503,3514.9,3514.5,0.55]
[1721582344724,3.14226078,3515.0,3514.5,0.55]
[1721582344922,0.29728078,3515.0,3514.5,0.55]
[1721582345154,0.31422308,3514.9,3514.5,0.55]
[1721582345356,2.84512,3514.8,3514.3,0.55]
[1721582345662,2.84541,3514.5,3514.2,7.3]
[1721582345961,2.84527,3514.6,3514.2,7.3]
[1721582346168,2.84549,3514.4,3514.2,7.3]
[1721582346321,2.84551,3514.3,3514.2,7.3]
[1721582346956,2.84551,3514.3,3514.2,7.85]
[1721582348165,2.84528,3514.6,3514.2,7.85]
[1721582348334,6.14224078,3515.0,3514.2,0.55]
[1721582348523,0.29728078,3515.0,3514.4,2.84542]
[1721582348735,0.29728078,3515.0,3514.5,0.55]
[1721582348938,0.29728078,3515.0,3514.8,2.84509]
[1721582349164,0.29728078,3515.0,3514.9,0.55]
[1721582349835,0.29728078,3515.0,3514.7,0.55]
[1721582350225,3.14228078,3515.0,3514.6,0.55]
[1721582350462,0.29728078,3515.0,3514.4,0.55]
[1721582350768,0.29728078,3515.0,3514.4,3.39543]
[1721582351259,3.14224078,3515.0,3514.4,3.39543]
[1721582352063,0.29728078,3515.0,3514.4,3.39543]
[1721582352629,3.14223078,3515.0,3514.4,3.39543]
[1721582353120,2.84503,3514.9,3514.4,0.55]
[1721582353471,0.29728078,3515.0,3514.4,0.55]
[1721582353766,2.84507,3514.9,3514.4,0.55]
[1721582354119,3.14223078,3515.0,3514.4,0.55]
[1721582354324,0.29728078,3515.0,3514.4,3.6851]
[1721582355438,0.29728078,3515.0,3514.5,2.84535]
[1721582355637,0.29728078,3515.0,3514.6,0.55]
[1721582356457,2.84503,3514.9,3514.6,0.55]
[1721582356661,0.29728078,3515.0,3514.4,0.55]
[1721582356844,0.29728078,3515.0,3514.4,3.39541]
[1721582357571,3.14224078,3515.0,3514.4,0.55]
[1721582358775,0.29728078,3515.0,3514.4,0.55]
[1721582359071,0.29728078,3515.0,3514.5,2.84535]
[1721582359282,0.29728078,3515.0,3514.6,0.55]
[1721582359487,0.29728078,3515.0,3514.6,3.39526]
[1721582359650,0.29728078,3515.0,3514.8,2.84505]
[1721582359863,0.29728078,3515.0,3514.9,3.39503]
[1721582360263,0.29728078,3515.0,3514.9,0.55]
[1721582360577,0.29728078,3515.0,3514.8,0.55]
[1721582360953,0.29728078,3515.0,3514.5,0.55]
[1721582361164,0.29728078,3515.0,3514.7,2.84517]
[1721582361351,0.29728078,3515.0,3514.8,0.55]
[1721582361582,0.29728078,3515.0,3514.6,0.55]
[1721582362600,0.29728078,3515.0,3514.5,0.55]
[1721582362894,0.29728078,3515.0,3514.5,3.39535]
[1721582363596,0.29728078,3515.0,3514.5,0.55]
[1721582364307,0.9851788,3515.0,3514.5,0.55]
[1721582364609,0.9851788,3515.0,3514.4,0.55]
[1721582364610,2.84505,3514.9,3514.4,0.55]
[1721582365512,2.84537,3514.5,3514.1,7.3]
[1721582365664,2.84559,3514.2,3514.1,7.3]
[1721582365863,2.84568,3514.1,3513.8,2.4666]
[1721582366137,3.50391494,3514.2,3513.5,10.14612]
[1721582366308,3.80121713,3514.2,3513.5,10.14612]
[1721582366997,2.84568,3514.1,3513.5,10.14612]
[1721582367201,2.84568,3514.1,3513.5,7.3]
[1721582367411,3.73778937,3514.1,3513.5,7.3]
[1721582367714,3.73778937,3514.1,3513.6,0.55]
[1721582367920,2.84568,3514.1,3513.6,0.55]
[1721582368091,0.29730219,3514.2,3513.6,0.55]
[1721582368272,2.84568,3514.1,3513.6,0.55]
[1721582368612,2.84582,3514.0,3513.6,0.55]
[1721582369321,2.84582,3514.0,3513.5,0.55]
[1721582371301,0.89210937,3514.1,3513.5,3.39615]
[1721582371638,1.18947917,3514.0,3513.1,7.3]
[1721582371840,3.73811937,3513.7,3513.1,7.3]
[1721582372045,0.89210937,3513.6,3513.1,7.3]
[1721582372201,2.84625,3513.4,3513.1,7.3]
[1721582373107,0.89210937,3513.6,3513.1,7.3]
[1721582373314,3.73810937,3513.7,3513.1,7.3]
[1721582373511,2.84617,3513.5,3513.1,7.3]
[1721582374019,1.85893107,3513.7,3513.1,7.3]
[1721582374353,1.85893107,3513.7,3513.2,0.55]
[1721582374655,0.9668217,3513.7,3513.2,0.55]
[1721582374819,2.84614,3513.6,3513.2,0.55]
[1721582375253,2.84614,3513.6,3513.0,0.55]
[1721582375748,2.84618,3513.5,3513.0,0.55]
[1721582375950,2.84618,3513.5,3512.9,0.55]
[1721582376151,3.73828937,3513.5,3512.9,0.55]
[1721582376370,4.23106622,3513.5,3512.9,0.55]
[1721582376641,2.84638,3513.3,3512.9,0.55]
[1721582376955,3.33897685,3513.5,3512.9,0.55]
[1721582377154,2.8462,3513.5,3512.9,0.55]
[1721582378872,3.73812937,3513.7,3513.0,2.84655]
[1721582378873,3.73811937,3513.7,3513.0,2.84655]
[1721582379172,3.73811937,3513.7,3513.1,0.55]
[1721582379340,2.84617,3513.5,3513.1,0.55]
[1721582379537,2.84617,3513.5,3512.9,0.55]
[1721582379754,2.84626,3513.4,3512.9,0.55]
[1721582380960,0.65842894,3513.5,3512.9,0.55]
[1721582380961,2.84633,3513.3,3512.9,0.55]
[1721582381193,2.4866,3513.2,3512.1,12.5271217]
[1721582381378,2.4866,3513.2,3512.1,0.0571217]
[1721582381379,2.84669,3512.9,3512.1,0.0571217]
[1721582381581,0.24866,3513.1,3512.4,2.84702]
[1721582381871,2.84657,3513.0,3512.2,2.3269]
[1721582382036,2.84675,3512.8,3512.2,2.3269]
[1721582382238,0.54129537,3513.1,3512.1,0.0571217]
[1721582382457,2.8469,3512.6,3512.1,0.0571217]
[1721582383386,1.18413215,3513.0,3512.1,0.0571217]
[1721582383546,2.84715,3512.3,3512.1,0.0571217]
[1721582383748,2.84721,3512.2,3512.1,0.0571217]
[1721582383988,5.979141,3512.2,3512.1,0.0571217]
[1721582384548,3.131931,3512.2,3512.1,0.0571217]
[1721582385265,5.979141,3512.2,3512.1,0.0571217]
[1721582385573,17.312951,3512.2,3512.1,0.0571217]
[1721582386014,2.84804,3511.2,3510.4,2.4781655]
[1721582386285,2.84765,3511.7,3510.4,2.4781655]
[1721582386286,0.8918076,3511.7,3510.4,2.4781655]
[1721582386465,3.0,3511.9,3511.1,2.84807]
[1721582386657,0.6284721,3511.9,3511.1,2.84807]
[1721582386873,0.6284721,3511.9,3510.4,2.4781655]
[1721582387072,6.131951,3512.2,3511.4,2.84779]
[1721582387277,3.284721,3512.2,3511.3,2.84793]
[1721582387759,3.284721,3512.2,3510.6,2.8485]
[1721582387948,2.84746,3511.9,3510.9,2.84825]
[1721582388285,2.84768,3511.7,3510.9,2.84825]
[1721582388502,0.569524,3511.6,3510.9,2.84825]
[1721582388795,2.84746,3511.9,3511.0,2.84815]
[1721582388977,2.8474,3512.0,3511.2,2.84802]
[1721582389163,2.8474,3512.0,3511.3,0.55]
[1721582389359,2.8474,3512.0,3511.3,3.39794]
[1721582389596,3.131961,3512.2,3511.3,3.39794]
[1721582389758,0.284721,3512.2,3511.8,2.84753]
[1721582389998,5.8469,3512.6,3511.9,0.55]
[1721582390165,2.84721,3512.3,3511.9,0.55]
[1721582390785,2.84722,3512.2,3511.9,0.55]
[1721582390947,2.84733,3512.1,3511.4,2.8478]
[1721582391148,2.84738,3512.0,3511.5,0.55]
[1721582391385,3.41684,3512.0,3511.4,0.55]
[1721582391987,0.56946,3512.0,3511.4,0.55]
[1721582392189,5.8469,3512.6,3511.9,2.84744]
[1721582392389,0.29202278,3513.0,3512.0,0.55]
[1721582392390,0.29266693,3512.3,3512.0,0.55]
[1721582392594,0.29266693,3512.3,3511.4,3.3978]
[1721582392595,0.29266693,3512.3,3512.2,2.84721]
[1721582392888,2.84669,3512.9,3512.2,0.55]
[1721582393211,0.29264716,3512.9,3512.2,0.55]
[1721582393350,0.29264716,3512.9,3512.3,2.84712]
[1721582393553,2.84658,3513.0,3512.4,0.55]
[1721582393776,3.44561238,3513.0,3512.4,0.55]
[1721582394177,0.59903238,3513.0,3512.4,3.39705]
[1721582394374,0.29268337,3513.1,3512.6,2.84688]
[1721582394551,3.29268337,3513.1,3512.7,0.55]
[1721582394995,0.29268337,3513.1,3512.7,0.55]
[1721582395196,0.29268337,3513.1,3512.7,3.39674]
[1721582395502,0.29268337,3513.1,3512.8,2.84666]
[1721582395503,3.29268337,3513.1,3512.8,2.84666]
[1721582395793,0.29268337,3513.1,3512.8,2.84666]
[1721582396091,0.29734384,3513.2,3513.0,2.84656]
[1721582396299,0.29734384,3513.2,3513.1,3.39648]
[1721582396509,0.29734384,3513.2,3513.1,2.84648]
[1721582396711,0.29734384,3513.2,3513.1,3.39648]
[1721582397191,0.29734384,3513.2,3513.1,5.75738]
[1721582398500,0.29734384,3513.2,3513.1,8.60386]
[1721582399270,2.84518,3514.8,3514.1,2.84566]
[1721582399579,5.12946,3515.0,3513.4,2.84619]
[1721582399580,0.29722404,3513.9,3513.8,12.99184]
[1721582399900,2.84495,3515.0,3514.3,2.8455]
[1721582400085,0.29721488,3514.7,3514.3,2.8455]
[1721582400665,0.29721488,3514.7,3513.9,10.14584]
[1721582400891,0.29721488,3514.7,3514.0,0.55]
[1721582401276,2.58171488,3514.7,3513.9,7.3]
[1721582401483,2.84561,3514.2,3513.9,7.3]
[1721582401682,2.84543,3514.4,3513.5,2.84614]
[1721582402010,3.28746526,3514.6,3513.1,7.3]
[1721582402011,3.0,3514.3,3513.1,7.3]
[1721582402310,6.13275526,3514.6,3513.2,2.84638]
[1721582402601,2.84585,3513.9,3513.2,2.84638]
[1721582402808,0.569153,3513.8,3513.1,7.3]
[1721582402980,2.84576,3514.0,3513.2,0.55]
[1721582403679,2.84576,3514.0,3513.2,2.9109]
[1721582404111,2.84568,3514.1,3513.2,2.9109]
[1721582404406,2.84592,3513.8,3513.2,0.55]
[1721582404613,0.584592,3513.7,3513.2,0.55]
[1721582404912,0.584592,3513.7,3513.2,3.39639]
[1721582405119,2.84575,3514.1,3513.2,3.39639]
[1721582405277,5.84577,3514.0,3513.3,2.84629]
[1721582405480,3.0,3514.0,3513.4,2.84622]
[1721582405681,2.84551,3514.4,3513.6,2.84605]
[1721582405881,0.28746526,3514.6,3513.7,2.9109]
[1721582406081,2.84487,3515.1,3514.0,2.84572]
[1721582406327,2.2845,3515.3,3514.1,0.55]
[1721582406528,2.2845,3515.3,3514.1,3.39561]
[1721582406529,2.84505,3514.9,3514.1,3.39561]
[1721582406677,2.84505,3514.9,3514.2,3.39557]
[1721582406880,2.84491,3515.1,3514.3,2.8455]
[1721582407133,0.319491,3515.0,3514.4,2.84541]
[1721582407322,0.319491,3515.0,3514.5,3.39531]
[1721582407481,0.319491,3515.0,3514.5,3.39534]
[1721582407819,2.8445,3515.6,3514.6,2.84527]
[1721582408030,2.8445,3515.6,3514.7,0.55]
[1721582408181,0.59004918,3515.5,3514.7,3.39518]
[1721582408734,0.59004918,3515.5,3515.0,2.84493]
[1721582409089,0.59004918,3515.5,3514.8,2.8451]
[1721582409289,3.18809792,3515.4,3514.9,0.55]
[1721582409489,3.18809792,3515.4,3514.7,0.55]
[1721582409719,3.18809792,3515.4,3514.7,3.39512]
[1721582410038,3.18809792,3515.4,3514.8,2.8451]
[1721582410221,3.18809792,3515.4,3514.9,0.55]
[1721582410386,0.96226771,3515.3,3514.9,0.55]
[1721582410587,0.96226771,3515.3,3515.0,2.84494]
[1721582410914,0.96226771,3515.3,3514.9,0.55]
[1721582411119,0.96226771,3515.3,3514.8,3.39508]
[1721582411506,2.84485,3515.2,3514.4,2.84535]
[1721582411706,2.84493,3515.1,3514.5,0.55]
[1721582412345,2.84495,3515.0,3514.5,0.55]
[1721582412500,2.84495,3515.0,3514.3,2.8455]
[1721582412695,2.84495,3515.0,3514.4,0.55]
[1721582412923,0.64294377,3514.9,3514.4,0.55]
[1721582413142,0.64294377,3514.9,3514.4,3.39543]
[1721582413297,0.64294377,3514.9,3514.4,0.55]
[1721582413639,0.73968769,3515.2,3514.7,2.84518]
[1721582413839,0.73968769,3515.2,3514.8,0.55]
[1721582414132,3.73968769,3515.2,3514.8,0.55]
[1721582414737,3.59004918,3515.5,3514.9,2.84502]
[1721582414892,3.59004918,3515.5,3514.8,0.55]
[1721582414893,6.43458918,3515.5,3514.8,0.55]
[1721582415931,3.59004918,3515.5,3514.8,0.55]
[1721582416135,3.59004918,3515.5,3514.9,2.84501]
[1721582416347,3.59004918,3515.5,3515.2,2.84477]
[1721582416348,0.59004918,3515.5,3515.2,2.84477]
[1721582416524,0.29723725,3515.5,3515.2,2.84477]
[1721582416845,0.29723725,3515.5,3515.2,2.84473]
[1721582417147,0.29723725,3515.5,3515.0,2.4207]
[1721582417300,0.29723725,3515.5,3515.4,2.84462]
[1721582417506,0.29723725,3515.5,3515.4,5.68924]
[1721582417807,0.29723725,3515.5,3515.4,6.23924]
[1721582418002,0.29723725,3515.5,3515.4,3.39462]
[1721582418200,0.29723725,3515.5,3515.4,6.23924]
[1721582419326,0.29723725,3515.5,3515.4,11.50456]
[1721582419625,2.84323,3517.2,3516.4,2.84381]
[1721582419838,2.84325,3517.1,3516.5,0.55]
[1721582420011,3.15698425,3517.0,3516.5,0.55]
[1721582420208,3.15698425,3517.0,3516.4,0.55]
[1721582421166,2.84341,3516.9,3516.1,7.3]
[1721582421812,2.84363,3516.7,3516.1,7.3]
[1721582423112,0.31364425,3517.0,3516.1,7.3]
[1721582423354,0.39040319,3516.9,3516.1,7.3]
[1721582423667,2.84397,3516.2,3516.1,7.3]
[1721582423949,3.0,3516.2,3515.2,7.3]
[1721582424248,2.84433,3515.8,3515.2,7.3]
[1721582425014,2.8445,3515.6,3515.2,7.3]
[1721582425358,2.84418,3516.0,3515.2,7.3]
[1721582425563,3.0,3515.9,3515.2,7.3]
[1721582425715,2.84397,3516.2,3515.4,2.4207]
[1721582425907,3.35,3516.5,3515.9,2.84416]
[1721582426111,3.0,3516.5,3516.0,3.39411]
[1721582426366,3.0,3516.5,3516.1,2.84401]
[1721582426510,0.84897932,3516.6,3516.0,0.55]
[1721582426707,0.84897932,3516.6,3516.0,3.39413]
[1721582427245,3.51298593,3516.5,3516.0,0.55]
[1721582427432,3.51298593,3516.5,3515.8,2.84428]
[1721582427433,0.66925593,3516.5,3515.9,0.55]
[1721582427638,0.66925593,3516.5,3515.9,3.39415]
[1721582427845,3.51299593,3516.5,3515.9,0.55]
[1721582428022,0.66925593,3516.5,3515.8,3.3943]
[1721582428228,0.66925593,3516.5,3516.0,2.84413]
[1721582428448,0.66925593,3516.5,3516.1,3.39405]
[1721582428749,0.29319254,3517.2,3516.1,3.39405]
[1721582428750,3.14050515,3517.1,3516.2,2.84397]
[1721582428958,3.14050515,3517.1,3516.3,2.9707]
[1721582429252,3.14050515,3517.1,3516.4,2.84375]
[1721582429423,3.14050515,3517.1,3516.5,0.55]
[1721582429757,0.29719515,3517.1,3516.5,0.55]
[1721582429963,0.29719515,3517.1,3515.9,2.84414]
[1721582429964,2.84349,3516.8,3516.4,0.55]
[1721582430106,3.18673677,3517.0,3516.4,0.55]
[1721582430308,3.18673677,3517.0,3516.3,0.55]
[1721582430309,5.84344,3516.9,3516.3,0.55]
[1721582430539,2.84349,3516.8,3516.3,0.55]
[1721582430819,2.84349,3516.8,3516.1,0.55]
[1721582431041,3.77622719,3516.8,3516.1,0.55]
[1721582431557,3.77622719,3516.8,3516.1,3.39405]
[1721582431850,3.77622719,3516.8,3516.2,2.84397]
[1721582432049,3.77622719,3516.8,3516.3,0.55]
[1721582432253,0.93273719,3516.8,3516.3,0.55]
[1721582432425,2.8438,3516.5,3516.0,0.55]
[1721582432627,0.34335677,3517.0,3516.0,0.55]
[1721582432811,2.84374,3516.5,3516.0,0.55]
[1721582433216,2.84361,3516.7,3516.0,0.55]
[1721582433638,2.84361,3516.7,3516.0,3.39413]
[1721582434256,3.44664068,3516.7,3516.0,3.39413]
[1721582434829,0.60303068,3516.7,3516.0,0.55]
[1721582435027,0.60303068,3516.7,3516.2,2.84397]
[1721582435352,0.29720273,3516.6,3516.2,2.84397]
[1721582436124,0.29720273,3516.6,3515.9,2.4207]
[1721582436125,0.29720273,3516.6,3516.4,2.8438]
[1721582436339,0.29720273,3516.6,3516.5,0.55]
[1721582437257,0.29720273,3516.6,3516.5,3.39373]
[1721582438322,0.29720273,3516.6,3516.5,0.55]
[1721582438525,0.29720273,3516.6,3516.4,0.55]
[1721582438720,0.29720273,3516.6,3516.3,0.55]
[1721582439448,0.29720273,3516.6,3516.2,0.55]
[1721582439770,0.29720273,3516.6,3516.2,3.39397]
[1721582439926,0.29720273,3516.6,3516.3,2.84389]
[1721582440123,0.29720273,3516.6,3516.4,0.55]
[1721582440765,0.29720273,3516.6,3516.3,3.39384]
[1721582440935,0.29720273,3516.6,3516.3,0.55]
[1721582441766,0.911273,3516.6,3516.3,0.55]
[1721582441976,0.911273,3516.6,3516.0,3.39414]
[1721582442171,0.911273,3516.6,3516.1,2.84405]
[1721582442382,0.911273,3516.6,3516.2,0.55]
[1721582442896,0.29720273,3516.6,3516.4,2.8438]
[1721582443464,0.29720273,3516.6,3516.2,3.39392]
[1721582443890,0.29720273,3516.6,3516.3,2.84388]
[1721582444196,0.29720273,3516.6,3516.2,0.55]
[1721582444399,0.626923,3516.6,3516.2,0.55]
[1721582444701,3.470573,3516.6,3516.1,0.55]
[1721582444901,3.470573,3516.6,3515.9,2.4207]
[1721582444902,2.84373,3516.5,3515.9,2.4207]
[1721582445147,2.84373,3516.5,3515.6,7.3]
[1721582445148,5.84373,3516.5,3515.6,10.1444]
[1721582445264,2.84399,3516.2,3515.7,0.55]
[1721582445609,3.712762,3516.2,3515.7,0.55]
[1721582446263,2.84421,3516.0,3515.1,7.3]
[1721582446461,5.3673,3516.1,3515.1,10.14485]
[1721582446682,2.3673,3516.1,3515.1,10.14485]
[1721582446961,2.84432,3515.8,3515.1,10.14485]
[1721582447174,0.284432,3515.7,3515.1,10.14485]
[1721582447595,3.128832,3515.7,3515.2,0.55]
[1721582448302,0.284432,3515.7,3515.2,0.55]
[1721582448504,3.0,3515.8,3515.3,2.84463]
[1721582448710,3.0,3515.9,3515.3,2.84463]
[1721582449520,5.84422,3515.9,3515.3,2.84463]
[1721582449677,5.84422,3515.9,3515.2,0.55]
[1721582449877,0.584422,3515.8,3515.2,0.55]
[1721582450602,0.29719212,3515.7,3515.2,3.39477]
[1721582451401,2.84453,3515.6,3515.2,0.55]
[1721582451566,2.84453,3515.6,3515.1,7.3]
[1721582451966,2.84455,3515.5,3515.1,7.3]
[1721582452168,0.59861221,3515.4,3514.7,2.2684]
[1721582452414,0.59861221,3515.4,3514.7,5.11357]
[1721582452776,0.59861221,3515.4,3514.7,2.2684]
[1721582453135,2.84477,3515.3,3514.6,10.14525]
[1721582453287,2.84482,3515.2,3514.6,7.3]
[1721582453465,3.77361822,3515.2,3514.3,17.58391]
[1721582453865,0.92879822,3515.2,3514.6,2.84521]
[1721582454070,0.92879822,3515.2,3514.8,2.84508]
[1721582454466,3.0,3515.5,3514.9,2.84499]
[1721582454911,0.29719212,3515.7,3515.5,2.84454]
[1721582455072,0.29719212,3515.7,3515.6,3.39446]
[1721582455271,0.29719212,3515.7,3515.6,0.55]
[1721582455504,0.29719212,3515.7,3515.4,2.84457]
[1721582455505,0.29719212,3515.7,3515.5,0.55]
[1721582456314,0.29719212,3515.7,3515.4,0.55]
[1721582456677,0.29719212,3515.7,3515.6,2.84446]
[1721582456903,0.29719212,3515.7,3515.6,3.39446]
[1721582457272,0.29719212,3515.7,3515.2,2.84478]
[1721582457814,0.29719212,3515.7,3515.3,0.55]
[1721582458193,0.70051909,3515.7,3514.9,10.145]